bitfinex/quotes_BTCUSD_20250718
["timestamp","ask_amount","ask_price","bid_price","bid_amount"]
[1752803298913,0.01129889,120490.0,120480.0,0.74697106]
[1752803299131,0.49881852,120490.0,120480.0,0.74697106]
[1752803299345,0.02789701,120490.0,120480.0,0.74697106]
[1752803299552,0.03822617,120490.0,120480.0,0.74386106]
[1752803299768,0.04652547,120490.0,120480.0,0.74386106]
[1752803300210,0.03822617,120490.0,120480.0,0.74386106]
[1752803300628,0.03822617,120490.0,120480.0,0.82962068]
[1752803301627,0.003,120490.0,120480.0,0.83286068]
[1752803302169,0.01129882,120490.0,120480.0,0.83286068]
[1752803302472,0.02789687,120490.0,120480.0,0.74710106]
[1752803302711,0.01959778,120490.0,120480.0,0.74710106]
[1752803302911,0.02789687,120490.0,120480.0,0.74710106]
[1752803303093,0.01933712,120490.0,120480.0,0.74710106]
[1752803303443,0.01933712,120490.0,120480.0,0.83286068]
[1752803303872,0.02763628,120490.0,120480.0,0.83286068]
[1752803304066,0.03802558,120490.0,120480.0,0.83286068]
[1752803304760,0.03802558,120490.0,120480.0,0.82962068]
[1752803304972,0.02972628,120490.0,120480.0,0.82962068]
[1752803305198,0.03802558,120490.0,120480.0,0.82132103]
[1752803305399,0.04632495,120490.0,120480.0,0.82962074]
[1752803305594,0.03802558,120490.0,120480.0,0.82962033]
[1752803306543,0.03802558,120490.0,120480.0,0.73556106]
[1752803306743,0.03802558,120490.0,120480.0,0.74386071]
[1752803306983,0.04051214,120490.0,120480.0,0.74386071]
[1752803307205,0.02182368,120490.0,120480.0,0.74710071]
[1752803307448,0.03842194,120490.0,120480.0,0.74710071]
[1752803307856,0.0384218,120490.0,120480.0,0.74710071]
[1752803308063,0.04672103,120490.0,120480.0,0.74710071]
[1752803308268,0.04672151,120490.0,120480.0,0.74710071]
[1752803308454,0.04881151,120490.0,120480.0,0.74386071]
[1752803309157,0.20650183,120490.0,120480.0,0.71856164]
[1752803309366,0.67205404,120490.0,120480.0,0.72686142]
[1752803309575,0.67205404,120490.0,120480.0,0.73516113]
[1752803309991,0.67172372,120490.0,120480.0,0.73516113]
[1752803310203,0.67172372,120490.0,120480.0,0.72686142]
[1752803310423,0.0214939,120490.0,120480.0,0.67692069]
[1752803310633,0.0214935,120490.0,120480.0,0.82412069]
[1752803310850,0.01319447,120490.0,120480.0,0.67692069]
[1752803311065,0.00489558,120490.0,120480.0,0.67692069]
[1752803311288,0.00489558,120490.0,120480.0,0.82412069]
[1752803312056,0.02149343,120490.0,120480.0,0.73836107]
[1752803312256,0.02979259,120490.0,120480.0,0.73836107]
[1752803312457,0.02149343,120490.0,120480.0,0.73836107]
[1752803312674,0.02149336,120490.0,120480.0,0.73836107]
[1752803312876,0.00489558,120490.0,120480.0,1.37223373]
[1752803313117,0.00489558,120490.0,120480.0,0.90957152]
[1752803313322,0.00489558,120490.0,120480.0,0.8238119]
[1752803313523,0.0131944,120490.0,120480.0,0.8238119]
[1752803313864,0.0131944,120490.0,120480.0,0.6766919]
[1752803313865,0.49241473,120490.0,120480.0,0.6766919]
[1752803314057,0.50901326,120490.0,120480.0,0.8238119]
[1752803314277,0.02979245,120490.0,120480.0,0.8238119]
[1752803314469,0.03809168,120490.0,120480.0,0.84854461]
[1752803314670,0.03809161,120490.0,120480.0,0.84854461]
[1752803314891,0.04639091,120490.0,120480.0,0.8238119]
[1752803315306,0.04639194,120490.0,120480.0,0.81551225]
[1752803315528,0.21447081,120490.0,120480.0,0.81543225]
[1752803315729,0.21447081,120490.0,120480.0,0.67669196]
[1752803315935,0.67172393,120490.0,120480.0,0.80230196]
[1752803316145,0.67172393,120490.0,120480.0,0.79400225]
[1752803316352,0.65512547,120490.0,120480.0,0.35534963]
[1752803316562,0.17430264,120480.0,120470.0,0.34]
[1752803316780,0.63901485,120480.0,120470.0,0.34]
[1752803316987,0.64194485,120480.0,120470.0,0.34]
[1752803317517,0.17932264,120480.0,120470.0,0.34]
[1752803317767,0.01660239,120460.0,120450.0,0.20700999]
[1752803317986,0.02699362,120460.0,120450.0,0.46298198]
[1752803318207,0.19302404,120460.0,120450.0,0.64137849]
[1752803318642,0.02699383,120460.0,120450.0,0.7966402]
[1752803318886,0.01869246,120460.0,120450.0,0.6496802]
[1752803319077,0.01869246,120460.0,120450.0,0.6529202]
[1752803319303,0.01660246,120460.0,120450.0,0.6559202]
[1752803319728,0.01660246,120460.0,120450.0,0.8028402]
[1752803319933,0.02490383,120460.0,120450.0,0.8028402]
[1752803320170,0.02590383,120460.0,120450.0,0.8058402]
[1752803320622,0.03420527,120460.0,120450.0,0.8058402]
[1752803321274,0.20023548,120460.0,120450.0,0.8058402]
[1752803321494,0.19402432,120460.0,120450.0,0.70048636]
[1752803321721,0.71766252,120460.0,120450.0,0.006]
[1752803321958,0.73256252,120460.0,120450.0,0.006]
[1752803322181,0.86454252,120460.0,120450.0,0.006]
[1752803322579,0.86454252,120460.0,120450.0,0.003]
[1752803322787,0.17434606,120450.0,120440.0,0.55536733]
[1752803323006,0.18473763,120450.0,120440.0,0.56563001]
[1752803323225,0.18473763,120450.0,120440.0,0.3561]
[1752803323450,0.78882827,120450.0,120440.0,0.34]
[1752803323668,0.78882827,120450.0,120440.0,0.52266335]
[1752803323882,0.78882827,120450.0,120440.0,0.53876335]
[1752803323883,0.78883829,120450.0,120440.0,0.53876335]
[1752803324094,0.17648608,120450.0,120440.0,0.57462857]
[1752803324332,0.32328608,120450.0,120440.0,0.57462857]
[1752803324545,0.16554379,120450.0,120440.0,0.58293104]
[1752803324772,0.17175529,120450.0,120440.0,0.67193024]
[1752803324986,0.16345337,120450.0,120440.0,0.58617062]
[1752803325674,5.002e-05,120450.0,120440.0,1.28110311]
[1752803325888,5.002e-05,120450.0,120440.0,1.13430311]
[1752803326091,5.002e-05,120450.0,120440.0,1.28106311]
[1752803326563,5.002e-05,120450.0,120440.0,0.6716809]
[1752803326798,0.00835173,120450.0,120440.0,0.8184409]
[1752803327015,0.01665358,120450.0,120440.0,0.8184409]
[1752803327718,0.02495557,120450.0,120440.0,0.8184409]
[1752803327936,0.01665358,120450.0,120440.0,0.8184409]
[1752803328150,0.20139163,120450.0,120440.0,0.64987603]
[1752803328370,0.66694433,120450.0,120440.0,0.66983778]
[1752803328592,0.18771835,120450.0,120440.0,0.001]
[1752803329028,0.65034056,120450.0,120440.0,0.001]
[1752803329232,0.18771835,120450.0,120440.0,0.00930288]
[1752803329464,0.65034056,120450.0,120440.0,0.0326057]
[1752803329886,0.79702056,120450.0,120440.0,0.016]
[1752803330096,0.65034056,120450.0,120440.0,0.001]
[1752803330315,0.79698056,120450.0,120440.0,0.001]
[1752803331612,0.79798056,120450.0,120440.0,0.001]
[1752803331816,0.17436066,120440.0,120430.0,0.70912189]
[1752803332024,0.18470334,120440.0,120430.0,0.72789856]
[1752803332248,0.18470334,120440.0,120430.0,0.72789822]
[1752803332519,0.02490797,120440.0,120430.0,0.58422753]
[1752803332731,0.20757145,120440.0,120430.0,0.71422128]
[1752803332942,0.19926891,120440.0,120430.0,0.71422128]
[1752803333196,0.19926891,120440.0,120430.0,0.71522128]
[1752803333614,0.19926891,120440.0,120430.0,0.56862128]
[1752803333817,0.19096623,120440.0,120430.0,0.69857495]
[1752803334024,0.18470348,120440.0,120430.0,0.70390845]
[1752803334231,0.18470348,120440.0,120430.0,0.55734845]
[1752803334466,0.18470348,120440.0,120430.0,0.71217189]
[1752803334887,0.18470348,120440.0,120430.0,0.72047526]
[1752803335348,0.18470348,120440.0,120430.0,0.72043526]
[1752803335552,0.18470348,120440.0,120430.0,0.72873856]
[1752803335761,0.0186457,120440.0,120430.0,0.72873808]
[1752803335958,0.01660543,120440.0,120430.0,0.58522808]
[1752803336215,0.02490776,120440.0,120430.0,0.73170808]
[1752803336647,0.01660473,120440.0,120430.0,0.72340416]
[1752803336870,0.02490741,120440.0,120430.0,0.72340416]
[1752803337158,0.02490741,120440.0,120430.0,0.38340416]
[1752803337573,0.19926863,120440.0,120430.0,0.37510128]
[1752803337785,0.20757117,120440.0,120430.0,0.37510128]
[1752803337998,0.1992687,120440.0,120430.0,0.37510128]
[1752803338210,0.19096616,120440.0,120430.0,0.36671805]
[1752803338591,0.19096616,120440.0,120430.0,0.22862128]
[1752803338937,0.19096616,120440.0,120430.0,0.36671805]
[1752803339144,0.18266328,120440.0,120430.0,0.36671805]
[1752803339351,0.18266328,120440.0,120430.0,0.35841495]
[1752803339600,0.18266328,120440.0,120430.0,0.36671839]
[1752803339805,0.1743606,120440.0,120430.0,0.35841495]
[1752803340008,0.1743606,120440.0,120430.0,0.03467]
[1752803340009,0.16809778,120440.0,120430.0,0.03467]
[1752803340225,0.31445778,120440.0,120430.0,0.03467]
[1752803340689,0.31445778,120440.0,120430.0,0.20904507]
[1752803340912,0.31445778,120440.0,120430.0,0.21734851]
[1752803341122,0.16809778,120440.0,120430.0,0.18099]
[1752803342315,0.16809778,120440.0,120430.0,0.34706157]
[1752803342506,0.16809778,120440.0,120430.0,0.35536514]
[1752803342736,0.16809778,120440.0,120430.0,0.18099]
[1752803342943,0.16809778,120440.0,120430.0,0.35536514]
[1752803343144,0.16809778,120440.0,120430.0,0.03467]
[1752803343769,1.34014949,120440.0,120430.0,0.001]
[1752803343980,1.29396062,120440.0,120430.0,0.001]
[1752803344201,1.78020062,120440.0,120430.0,0.001]
[1752803344416,0.18269341,120420.0,120410.0,0.0004]
[1752803344686,0.36153341,120420.0,120410.0,0.0004]
[1752803344893,0.33093341,120420.0,120410.0,0.0004]
[1752803345098,0.79653562,120420.0,120410.0,0.0004]
[1752803345783,0.79657562,120420.0,120410.0,0.0004]
[1752803346027,0.79653562,120420.0,120410.0,0.0004]
[1752803346239,0.19171341,120420.0,120410.0,0.0004]
[1752803346388,0.33791341,120420.0,120410.0,0.0004]
[1752803346600,0.80053562,120420.0,120410.0,0.00023651]
[1752803347846,0.81563427,120420.0,120410.0,0.00023651]
[1752803348850,0.66943427,120420.0,120410.0,0.00023651]
[1752803349061,0.81559427,120420.0,120410.0,0.00023651]
[1752803349282,0.84645427,120420.0,120410.0,0.00023651]
[1752803350552,0.66943427,120420.0,120410.0,0.00023651]
[1752803351140,0.83045427,120420.0,120410.0,0.00023651]
[1752803351894,0.78494455,120420.0,120410.0,0.00023651]
[1752803352155,0.93102455,120420.0,120410.0,0.00023651]
[1752803353366,0.7994854,120420.0,120410.0,0.00023651]
[1752803353611,0.9455654,120420.0,120410.0,0.00023651]
[1752803353820,0.7994854,120420.0,120410.0,0.00023651]
[1752803354028,0.9455654,120420.0,120410.0,0.00023651]
[1752803354441,0.7994854,120420.0,120410.0,0.00023651]
[1752803354778,0.9455654,120420.0,120410.0,0.00023651]
[1752803355206,0.29232234,120420.0,120410.0,0.00023651]
[1752803355457,0.43836234,120420.0,120410.0,0.00023651]
[1752803355606,0.69587574,120420.0,120410.0,0.00023651]
[1752803355852,0.84091574,120420.0,120410.0,0.00023651]
[1752803356024,0.76494455,120420.0,120410.0,0.00123651]
[1752803356533,0.76194455,120420.0,120410.0,0.00123651]
[1752803356735,0.90798455,120420.0,120410.0,0.00123651]
[1752803357895,0.90798455,120420.0,120410.0,0.00223651]
[1752803358108,0.92298455,120420.0,120410.0,0.00223651]
[1752803360470,0.92294455,120420.0,120410.0,0.00223651]
[1752803362285,0.46032234,120420.0,120410.0,0.00223651]
[1752803362518,0.46032234,120420.0,120410.0,0.84120872]
[1752803362519,0.35465341,120420.0,120410.0,0.84120872]
[1752803362755,0.36972613,120420.0,120410.0,0.45503594]
[1752803362978,0.83434834,120420.0,120410.0,0.37558651]
[1752803363478,0.82334834,120420.0,120410.0,0.34123651]
[1752803363708,0.95056862,120420.0,120410.0,0.00223651]
[1752803363936,1.42773168,120420.0,120410.0,0.00223651]
[1752803364170,1.40573168,120420.0,120410.0,0.00023651]
[1752803364399,0.95910947,120420.0,120410.0,0.00223651]
[1752803364855,0.94910947,120420.0,120410.0,0.00123651]
[1752803365076,0.95810947,120420.0,120410.0,0.00223651]
[1752803366781,1.42073168,120420.0,120410.0,0.00223651]
[1752803368157,1.27477168,120420.0,120410.0,0.00223651]
[1752803368390,1.42069168,120420.0,120410.0,0.00223651]
[1752803368867,1.27477168,120420.0,120410.0,0.00223651]
[1752803369090,1.42069168,120420.0,120410.0,0.00223651]
[1752803369349,1.61109168,120420.0,120410.0,0.00123651]
[1752803369551,1.61109168,120420.0,120410.0,1e-08]
[1752803369739,1.62809168,120420.0,120410.0,0.00100001]
[1752803370323,1.62809168,120420.0,120410.0,1e-08]
[1752803371175,1.62209168,120420.0,120410.0,1e-08]
[1752803371579,1.62209168,120420.0,120390.0,0.0004]
[1752803371580,0.1972646,120400.0,120390.0,1e-08]
[1752803371922,1.7259393,120400.0,120390.0,1e-08]
[1752803372122,1.7291493,120400.0,120390.0,1e-08]
[1752803372328,1.7291493,120400.0,120380.0,0.0004]
[1752803372329,0.18897379,120390.0,120380.0,1e-08]
[1752803372660,0.91823628,120390.0,120380.0,1e-08]
[1752803372928,1.12861628,120390.0,120380.0,1e-08]
[1752803373139,0.81187407,120390.0,120380.0,1e-08]
[1752803374061,0.66599407,120390.0,120380.0,1e-08]
[1752803374352,0.81187407,120390.0,120380.0,1e-08]
[1752803374541,0.81987407,120390.0,120380.0,1e-08]
[1752803374813,0.67399407,120390.0,120380.0,1e-08]
[1752803375032,0.81987407,120390.0,120380.0,1e-08]
[1752803375257,0.82487407,120390.0,120380.0,1e-08]
[1752803375470,0.81687407,120390.0,120380.0,1e-08]
[1752803375677,0.82387407,120390.0,120380.0,1e-08]
[1752803376014,0.81687407,120390.0,120380.0,1e-08]
[1752803376211,0.82487407,120390.0,120380.0,1e-08]
[1752803377839,0.56018828,120380.0,120370.0,0.0004]
[1752803378048,0.79357856,120380.0,120370.0,0.00055027]
[1752803378256,1.25941077,120380.0,120370.0,0.00055027]
[1752803379113,1.26841077,120380.0,120370.0,0.00055027]
[1752803379734,1.12253077,120380.0,120370.0,0.00055027]
[1752803379909,1.26837077,120380.0,120370.0,0.00055027]
[1752803380319,1.27337077,120380.0,120370.0,1e-08]
[1752803381338,1.12753077,120380.0,120370.0,1e-08]
[1752803381566,1.12753077,120380.0,120370.0,0.03335001]
[1752803381567,0.27595771,120380.0,120370.0,0.03335001]
[1752803381776,0.90886139,120380.0,120370.0,0.03635001]
[1752803381985,0.41979771,120380.0,120370.0,0.03635001]
[1752803382191,0.41979771,120380.0,120370.0,0.03335001]
[1752803382192,0.88441992,120380.0,120370.0,0.03335001]
[1752803382621,0.88762992,120380.0,120370.0,0.03130001]
[1752803383451,0.88441992,120380.0,120370.0,0.03335001]
[1752803383684,0.88441992,120380.0,120370.0,0.03635001]
[1752803383896,0.73857992,120380.0,120370.0,0.03635001]
[1752803384101,0.88437992,120380.0,120370.0,0.03635001]
[1752803384371,0.88437992,120380.0,120370.0,0.03335001]
[1752803385044,0.42175771,120380.0,120370.0,0.03335001]
[1752803385275,0.88437992,120380.0,120370.0,0.03335001]
[1752803385506,0.88758992,120380.0,120370.0,0.03130001]
[1752803385732,0.91253392,120380.0,120370.0,0.03130001]
[1752803385958,0.88758992,120380.0,120370.0,0.03130001]
[1752803386641,0.42496771,120380.0,120370.0,0.03130001]
[1752803386864,0.88437992,120380.0,120370.0,0.03335001]
[1752803388184,0.88437992,120380.0,120370.0,0.03130001]
[1752803388405,0.88758992,120380.0,120370.0,0.03130001]
[1752803389931,0.42496771,120380.0,120370.0,1e-08]
[1752803390180,0.88758992,120380.0,120370.0,0.01550001]
[1752803391107,0.88758992,120380.0,120370.0,0.03090001]
[1752803392556,0.88750992,120380.0,120370.0,0.03090001]
[1752803392968,0.42488771,120380.0,120370.0,0.03090001]
[1752803393177,0.88750992,120380.0,120370.0,0.03090001]
[1752803395541,0.42488771,120380.0,120370.0,0.03090001]
[1752803395758,0.88750992,120380.0,120370.0,0.03090001]
[1752803395969,0.27595771,120380.0,120370.0,0.03290001]
[1752803396181,0.27595771,120380.0,120370.0,0.03594001]
[1752803396182,0.88221992,120380.0,120370.0,0.03594001]
[1752803397254,0.2050612,120380.0,120370.0,0.21040207]
[1752803397434,0.34239438,120380.0,120370.0,0.03594001]
[1752803397678,0.3340875,120380.0,120370.0,0.03594001]
[1752803397885,0.3250875,120380.0,120370.0,0.03594001]
[1752803398300,0.3270875,120380.0,120370.0,0.03594001]
[1752803398523,0.78970971,120380.0,120370.0,0.03594001]
[1752803398732,0.1794475,120380.0,120370.0,0.03594001]
[1752803398958,0.3260875,120380.0,120370.0,0.21870944]
[1752803399178,0.3260875,120380.0,120370.0,0.21040193]
[1752803399416,0.3260875,120380.0,120370.0,0.210402]
[1752803399636,0.3260875,120380.0,120370.0,0.04424772]
[1752803399854,0.1804475,120380.0,120370.0,0.21870964]
[1752803400086,0.1804475,120380.0,120370.0,0.57532431]
[1752803400087,0.02261329,120380.0,120370.0,0.57532431]
[1752803400296,0.006,120380.0,120370.0,1.20921642]
[1752803400505,0.001,120380.0,120370.0,1.1234568]
[1752803400715,0.23248645,120410.0,120400.0,0.21512403]
[1752803400940,0.64380441,120420.0,120410.0,0.22361319]
[1752803400941,0.00830392,120420.0,120410.0,0.22361319]
[1752803401154,0.00830364,120420.0,120410.0,0.5754166]
[1752803401415,0.00830364,120420.0,120410.0,1.11678568]
[1752803401635,0.15390364,120420.0,120410.0,1.11678568]
[1752803401845,0.24077461,120430.0,120420.0,0.22299732]
[1752803401846,0.01660611,120430.0,120420.0,0.22299732]
[1752803402064,0.18270816,120440.0,120430.0,0.54637501]
[1752803402277,0.18320864,120440.0,120430.0,0.54837501]
[1752803402488,0.32050582,120440.0,120430.0,0.54311157]
[1752803402730,0.31216294,120440.0,120430.0,0.54311157]
[1752803403152,0.31216294,120440.0,120430.0,0.64547806]
[1752803403385,0.31216294,120440.0,120430.0,0.63717469]
[1752803403603,0.15436302,120440.0,120430.0,0.66208445]
[1752803403815,0.33902588,120440.0,120430.0,0.65578136]
[1752803404029,0.33902588,120440.0,120430.0,0.56171851]
[1752803404245,0.33072355,120440.0,120430.0,0.57002188]
[1752803404464,0.32642101,120440.0,120430.0,0.57002188]
[1752803405809,0.32642101,120440.0,120430.0,0.57832504]
[1752803405941,0.16866577,120440.0,120430.0,0.57832504]
[1752803406155,0.34302643,120440.0,120430.0,0.57832504]
[1752803406359,0.34302643,120440.0,120430.0,0.57832518]
[1752803406582,0.34302643,120440.0,120430.0,0.58662841]
[1752803407011,0.34302643,120440.0,120430.0,0.57832518]
[1752803407217,0.33472389,120440.0,120430.0,0.55341507]
[1752803407419,0.18086114,120440.0,120430.0,0.37904]
[1752803407825,0.39272843,120440.0,120430.0,0.37904]
[1752803409225,0.85741064,120440.0,120430.0,0.036]
[1752803409430,1.17759285,120440.0,120430.0,0.002]
[1752803409635,1.32303285,120440.0,120430.0,0.002]
[1752803410457,1.26310313,120440.0,120430.0,0.002]
[1752803410654,1.40854313,120440.0,120430.0,0.002]
[1752803411060,0.48329871,120440.0,120430.0,0.002]
[1752803411255,0.48329871,120440.0,120410.0,0.0314]
[1752803411256,0.18269341,120420.0,120410.0,0.0314]
[1752803411456,0.18269341,120420.0,120380.0,0.16613986]
[1752803411457,0.16611295,120400.0,120390.0,0.03424]
[1752803411665,0.77623516,120400.0,120390.0,0.03624]
[1752803411906,0.77623516,120400.0,120390.0,0.0312]
[1752803412528,0.77723516,120400.0,120390.0,0.0322]
[1752803412771,0.77773564,120400.0,120390.0,0.0342]
[1752803412942,0.31511343,120400.0,120390.0,0.0342]
[1752803413156,0.31411343,120400.0,120390.0,0.0332]
[1752803413365,0.16971343,120400.0,120390.0,0.0342]
[1752803413580,0.18422423,120400.0,120390.0,0.22536447]
[1752803413717,0.17181644,120400.0,120390.0,0.24197624]
[1752803414094,0.01811073,120400.0,120390.0,0.66748652]
[1752803414300,0.17181589,120400.0,120390.0,0.66748652]
[1752803414502,0.17181589,120400.0,120390.0,0.66210112]
[1752803414713,0.33792981,120400.0,120390.0,0.55167301]
[1752803414914,0.34092981,120400.0,120390.0,0.56828499]
[1752803415115,0.34092981,120400.0,120390.0,0.55997907]
[1752803415323,0.34092981,120400.0,120390.0,0.55167308]
[1752803415324,0.32431907,120400.0,120390.0,0.55167308]
[1752803415563,0.15516592,120400.0,120390.0,0.55997934]
[1752803415772,0.18422437,120400.0,120390.0,0.03724]
[1752803415988,0.33158437,120400.0,120390.0,0.03724]
[1752803416190,0.33158437,120400.0,120390.0,0.21167294]
[1752803416392,0.33988974,120400.0,120390.0,0.21997907]
[1752803416698,0.16547115,120400.0,120390.0,0.22828513]
[1752803416935,0.17377617,120400.0,120390.0,0.23659098]
[1752803417137,0.03672174,120400.0,120390.0,0.23659098]
[1752803417325,0.17377617,120400.0,120390.0,0.23659098]
[1752803417556,0.0118055,120400.0,120390.0,0.23659098]
[1752803417761,0.00350048,120400.0,120390.0,0.66210126]
[1752803417965,0.00350048,120400.0,120390.0,0.74786088]
[1752803418170,0.00350048,120400.0,120390.0,1.23301455]
[1752803418574,0.00350048,120400.0,120390.0,0.74786088]
[1752803418781,0.00350048,120400.0,120390.0,0.66210126]
[1752803418986,0.00350048,120400.0,120390.0,1.29261493]
[1752803419165,0.00350048,120400.0,120390.0,1.16179578]
[1752803419579,0.00350048,120400.0,120390.0,1.30711578]
[1752803419724,0.00250048,120400.0,120390.0,1.3918754]
[1752803420130,0.00350048,120400.0,120390.0,1.3918754]
[1752803420577,0.00350048,120400.0,120390.0,0.82096211]
[1752803420786,0.00350048,120400.0,120390.0,1.30611578]
[1752803421182,0.00150048,120400.0,120390.0,1.16079578]
[1752803421380,0.00150048,120400.0,120390.0,1.30611578]
[1752803421581,0.00350048,120400.0,120390.0,1.3998754]
[1752803423174,0.00350048,120400.0,120390.0,1.3998354]
[1752803423379,0.00350048,120400.0,120390.0,1.31407578]
[1752803423983,0.00350048,120400.0,120390.0,0.68364211]
[1752803424227,0.00350048,120400.0,120390.0,1.31407578]
[1752803425711,0.00350048,120400.0,120390.0,0.82892211]
[1752803425926,0.00350048,120400.0,120390.0,0.66910126]
[1752803426140,0.00350048,120400.0,120390.0,0.81434126]
[1752803426990,0.00350048,120400.0,120390.0,1.29949493]
[1752803427208,0.00350048,120400.0,120390.0,1.24001455]
[1752803427455,0.00350048,120400.0,120390.0,1.38525455]
[1752803427671,0.00350048,120400.0,120390.0,1.29949493]
[1752803428151,0.00350048,120400.0,120390.0,1.29945493]
[1752803429282,0.00350048,120400.0,120390.0,0.81430126]
[1752803429485,0.00350048,120400.0,120390.0,1.29945493]
[1752803429859,0.01180557,120400.0,120390.0,0.81430126]
[1752803430075,0.0201108,120400.0,120390.0,0.66079541]
[1752803430278,0.26922239,120400.0,120390.0,0.80599541]
[1752803430482,0.10310944,120400.0,120390.0,0.66910133]
[1752803430680,0.26922239,120400.0,120390.0,0.81430133]
[1752803430904,0.10310944,120400.0,120390.0,0.81430133]
[1752803431105,0.10310944,120400.0,120390.0,0.80599541]
[1752803431266,0.10310944,120400.0,120390.0,0.82260732]
[1752803431432,0.26091716,120400.0,120390.0,0.8143014]
[1752803431639,0.23600072,120400.0,120390.0,0.46975028]
[1752803431890,0.23809072,120400.0,120390.0,0.3812]
[1752803432091,0.24125072,120400.0,120390.0,0.008]
[1752803432993,0.23809072,120400.0,120390.0,0.01006]
[1752803434602,0.17170343,120400.0,120390.0,0.18449301]
[1752803434803,0.00350048,120400.0,120390.0,0.70019994]
[1752803435205,0.00350048,120400.0,120390.0,1.29181887]
[1752803436015,0.01180557,120400.0,120390.0,0.8066652]
[1752803436444,0.00350048,120400.0,120390.0,0.8066652]
[1752803436650,0.01180557,120400.0,120390.0,0.8066652]
[1752803437048,0.00350048,120400.0,120390.0,0.8066652]
[1752803437394,0.01180557,120400.0,120390.0,0.89242482]
[1752803437753,0.01180557,120400.0,120390.0,0.8066652]
[1752803437965,0.0201108,120400.0,120390.0,0.8066652]
[1752803438167,0.02841617,120400.0,120390.0,0.8066652]
[1752803438742,0.0201108,120400.0,120390.0,0.8066652]
[1752803438955,0.02841617,120400.0,120390.0,0.8066652]
[1752803439132,0.0201108,120400.0,120390.0,0.6615052]
[1752803439368,0.0201108,120400.0,120390.0,0.8065852]
[1752803439805,0.0201108,120400.0,120390.0,0.6615052]
[1752803440018,0.00350048,120400.0,120390.0,0.6615052]
[1752803440447,0.00350048,120400.0,120390.0,0.8065852]
[1752803440660,0.01180557,120400.0,120390.0,0.8065852]
[1752803440877,0.00350048,120400.0,120390.0,0.8065852]
[1752803441310,0.01180557,120400.0,120390.0,0.8065852]
[1752803441498,0.01180557,120400.0,120390.0,0.6615052]
[1752803441774,0.01180557,120400.0,120390.0,0.8065852]
[1752803441996,0.00350048,120400.0,120390.0,0.8065852]
[1752803442395,0.00350048,120400.0,120390.0,0.82197583]
[1752803444379,0.0118055,120400.0,120390.0,0.67689583]
[1752803444608,0.02011066,120400.0,120390.0,0.82193583]
[1752803444815,0.0118055,120400.0,120390.0,0.82193583]
[1752803445234,0.0118055,120400.0,120390.0,0.8065452]
[1752803445404,0.02011066,120400.0,120390.0,0.8065452]
[1752803445829,0.0118055,120400.0,120390.0,0.8065452]
[1752803446402,0.00350048,120400.0,120390.0,0.89230482]
[1752803446756,0.00350048,120400.0,120390.0,0.8065052]
[1752803448983,0.00350048,120400.0,120390.0,0.6615052]
[1752803449211,0.00350048,120400.0,120390.0,0.8064652]
[1752803450554,0.00350048,120400.0,120390.0,0.6615052]
[1752803450727,0.01180557,120400.0,120390.0,0.6615052]
[1752803450955,0.01180557,120400.0,120390.0,0.8064252]
[1752803452067,0.00350048,120400.0,120390.0,0.8064252]
[1752803452243,0.0118055,120400.0,120390.0,0.8064252]
[1752803452456,0.00350048,120400.0,120390.0,0.8064252]
[1752803452755,0.00350048,120400.0,120390.0,0.6615052]
[1752803452984,0.00350048,120400.0,120390.0,0.8064252]
[1752803454431,0.0118055,120400.0,120390.0,0.8064252]
[1752803454851,0.02011066,120400.0,120390.0,0.8064252]
[1752803455267,0.02011059,120400.0,120390.0,0.8064252]
[1752803456946,0.02841582,120400.0,120390.0,1.30300036]
[1752803457562,0.02011059,120400.0,120390.0,1.30300036]
[1752803458871,0.02841582,120400.0,120390.0,1.30300036]
[1752803459112,0.03672119,120400.0,120390.0,1.15808036]
[1752803459310,0.03672112,120400.0,120390.0,1.30288036]
[1752803459753,0.03672112,120400.0,120390.0,0.8063052]
[1752803460234,0.02841582,120400.0,120390.0,0.8063052]
[1752803460465,0.02011059,120400.0,120390.0,1.30288036]
[1752803460918,0.0118055,120400.0,120390.0,1.30288036]
[1752803461145,0.02011059,120400.0,120390.0,1.30288036]
[1752803461369,0.02841582,120400.0,120390.0,1.30288036]
[1752803461594,0.02011059,120400.0,120390.0,1.30288036]
[1752803462093,0.00350048,120400.0,120390.0,1.15808036]
[1752803462300,0.0118055,120400.0,120390.0,1.15808036]
[1752803462550,0.0118055,120400.0,120390.0,0.6615052]
[1752803462756,0.02011073,120400.0,120390.0,1.30284036]
[1752803463284,0.02011066,120400.0,120390.0,1.30284036]
[1752803463879,0.0118055,120400.0,120390.0,1.30284036]
[1752803464090,0.02011066,120400.0,120390.0,1.30284036]
[1752803465671,0.0118055,120400.0,120390.0,1.30284036]
[1752803466589,0.02011066,120400.0,120390.0,1.30284036]
[1752803466796,0.0118055,120400.0,120390.0,1.30284036]
[1752803467475,0.00350048,120400.0,120390.0,1.30284036]
[1752803467908,0.01180557,120400.0,120390.0,1.30284036]
[1752803468528,0.00350048,120400.0,120390.0,1.15808036]
[1752803468743,0.0118055,120400.0,120390.0,0.6615052]
[1752803468956,0.0118055,120400.0,120390.0,1.30272036]
[1752803469178,0.02011066,120400.0,120390.0,1.30272036]
[1752803469393,0.02011059,120400.0,120390.0,1.30272036]
[1752803469604,0.02841582,120400.0,120390.0,1.30272036]
[1752803470215,0.02841582,120400.0,120390.0,1.15808036]
[1752803470475,0.02841582,120400.0,120390.0,1.30268036]
[1752803470624,0.02841582,120400.0,120390.0,0.8061052]
[1752803470837,0.02841575,120400.0,120390.0,1.30268036]
[1752803471675,0.02841575,120400.0,120390.0,1.30264036]
[1752803471888,0.02841575,120400.0,120390.0,0.8060652]
[1752803472095,0.03672105,120400.0,120390.0,1.30264036]
[1752803472306,0.02841575,120400.0,120390.0,1.30264036]
[1752803472516,0.02011059,120400.0,120390.0,1.30264036]
[1752803472723,0.02841582,120400.0,120390.0,1.30264036]
[1752803473150,0.02841582,120400.0,120390.0,0.8060652]
[1752803473365,0.02011059,120400.0,120390.0,1.30264036]
[1752803473542,0.02841575,120400.0,120390.0,1.30264036]
[1752803473747,0.02841575,120400.0,120390.0,0.8060652]
[1752803474148,0.02841575,120400.0,120390.0,1.30264036]
[1752803474333,0.03672105,120400.0,120390.0,1.30264036]
[1752803474788,0.03672105,120400.0,120390.0,0.65319935]
[1752803474963,0.04174147,120400.0,120390.0,0.77738119]
[1752803475172,0.04174147,120400.0,120390.0,0.63286119]
[1752803475173,0.10812876,120400.0,120390.0,0.63286119]
[1752803475383,0.11643433,120400.0,120390.0,0.77734119]
[1752803475713,0.11643433,120400.0,120390.0,0.77734126]
[1752803475915,0.28254728,120400.0,120390.0,0.77734126]
[1752803476041,0.10812972,120400.0,120390.0,0.76903534]
[1752803476246,0.27424267,120400.0,120390.0,0.77734126]
[1752803476495,0.10812972,120400.0,120390.0,0.77734126]
[1752803476718,0.09982408,120400.0,120390.0,0.78564711]
[1752803477049,0.27424267,120400.0,120390.0,0.77734126]
[1752803477726,0.09982408,120400.0,120390.0,0.78564711]
[1752803477931,0.03343679,120400.0,120390.0,0.78564711]